Cogmind - Beta 15 @@@ ROGUE MODE // 2025.05.10 @ 12:56:04 Player: Domo Result: Destroyed by Y-45 Defender with Heavy Assault Rifle Performance ------------- Evolutions (1) 500 Regions Visited (3) 600 Robots Destroyed (28) 140 Value Destroyed (714) 714 Prototype IDs (0) 0 Alien Tech Used (0) 0 Bonus (578) 578 TOTAL SCORE: 2532 Bonus ------- Follower Combat Kills 578 Cogmind --------- Core Integrity 0/400 Matter 267/300 Energy 265/265 System Corruption 5% Temperature Cool (0) Movement Treading (160) Location -9/Storage Parts ------- > --- POWER (1) -------- Improved Ion Engine (fused) > --- PROPULSION (2) --- Light Treads Light Treads > --- UTILITY (4) ------ Improved Heat Sink Terrain Scan Processor Drone Bay (2/2) > --- WEAPON (2) ------- Assault Rifle Flail > --- INVENTORY (5) ---- Improved Ion Engine Heavy Ion Engine Light Treads Light Treads Drone Bay (2/2) Peak State ------------ > --- POWER ------------ Improved Ion Engine > --- PROPULSION ------- Light Treads Light Treads > --- UTILITY ---------- Improved Heat Sink Terrain Scan Processor Drone Bay Drone Bay > --- WEAPON ----------- Assault Rifle Flail > --- INVENTORY -------- Light Treads Light Treads Drone Bay Drone Bay Flail [Rating: 23] Favorites ----------- Power Ion Engine Engine Ion Engine Propulsion Light Treads Treads Light Treads Leg Aluminum Leg Utility Small Storage Unit Device Improved Heat Sink Storage Small Storage Unit Processor Terrain Scan Processor Hackware Hacking Suite Weapon Assault Rifle Energy Gun EM Shotgun Ballistic Gun Assault Rifle Ballistic Cannon Light Cannon Launcher Grenade Launcher Impact Weapon Flail Build | -11 -10 -9 -9 ------- Run | Yrd Mat Mat Sto Slots Evolved 2 | . . 2 . Power . | . . . . Propulsion . | . . . . Utility 2 | . . 2 . Weapon . | . . . . Parts Attached 34 | 7 6 14 7 Power 6 | 1 1 3 1 Engine 6 | 1 1 3 1 Core . | . . . . Reactor . | . . . . Propulsion 8 | 2 2 3 1 Treads 6 | 2 . 3 1 Leg 2 | . 2 . . Wheel . | . . . . Hover . | . . . . Flight . | . . . . Utility 9 | 2 . 3 4 Device 4 | 1 . 1 2 Storage 3 | 1 . 1 1 Processor 1 | . . . 1 Hackware 1 | . . 1 . Protection . | . . . . Artifact . | . . . . Weapon 11 | 2 3 5 1 Energy Gun 1 | . . 1 . Energy Cannon . | . . . . Ballistic Gun 6 | 2 2 1 1 Ballistic Cannon 1 | . . 1 . Launcher 1 | . 1 . . Special Weapon . | . . . . Impact Weapon 2 | . . 2 . Slashing Weapon . | . . . . Piercing Weapon . | . . . . Special Melee Weapon . | . . . . Unidentified Prototypes . | . . . . Parts Lost 12 | . 2 9 1 Power 2 | . 1 1 . Propulsion 3 | . . 3 . Utility 3 | . 1 1 1 Weapon 4 | . . 4 . Highest Loss Streak 4 | . 2 4 1 To Critical Strikes . | . . . . Average Backups 5 | . 4 6 5 Power . | . . . 1 Propulsion 1 | . . 1 1 Utility 1 | . 1 . 1 Weapon 2 | . 2 3 . Tool/Special . | . . . . Unused Backups 8 | . 1 . 7 Power 4 | . 1 . 3 Propulsion 1 | . . . 1 Utility 3 | . . . 3 Weapon . | . . . . Tool/Special . | . . . . Average Slot Usage (%) 78 | . 95 63 86 Engine 11 | . 14 10 11 Treads 19 | . 24 15 20 Leg 2 | . 3 4 . Device 10 | . 9 1 20 Storage 9 | . 14 11 4 Processor 3 | . . . 8 Ballistic Gun 11 | . 21 8 8 Ballistic Cannon 2 | . . 4 . Launcher 1 | . 7 . . Impact Weapon 5 | . . 4 11 Peak Build Rating 23 | 9 10 11 23 Average Rating 10 | 5 8 7 17 On Entrance 6 | . 9 7 10 Naked Turns . | . . . . Heaviest Build 90 | 13 16 90 24 Greatest Support 40 | 40 40 40 40 Greatest Overweight (x) 2 | . . 2 . Average Overweight (x) . | . . . . Largest Inventory Capacity 25 | 8 8 25 8 Average Capacity 7 | 7 8 8 6 Most Carried 9 | 1 8 9 8 Average Carried 5 | . 4 6 5 Final Capacity 8 | 8 8 8 5 Final Carried 8 | 1 8 7 5 Class Distribution -------------------- 67% | Mutant 26% | Commander-Mutant 6% | Scavenger-Mutant Dominant Class ---------------- Mutant | -10/Materials Mutant | -9/Materials Commander-Mutant | -9/Storage Resources | -11 -10 -9 -9 ----------- Run | Yrd Mat Mat Sto Matter Collected 976 | 185 78 600 113 Remotely . | . . . . Salvage Created 799 | 70 163 448 118 Parts 59 | 4 15 33 7 Haulers Intercepted 1 | . . . 1 Recyclers Shooed . | . . . . Parts Field Recycled . | . . . . Retrieved Matter . | . . . . Parts Self-Destructed . | . . . . Prevented . | . . . . Kills | -11 -10 -9 -9 ------- Run | Yrd Mat Mat Sto Combat Hostiles Destroyed 22 | . 4 17 1 Melee 2 | . . 2 . Guns 14 | . 4 9 1 Cannons 3 | . . 3 . AOE 1 | . . 1 . Classes Destroyed 10 | 2 2 4 2 Worker 1 | . . 1 . Builder 1 | . . . 1 Tunneler 1 | 1 . . . Hauler 1 | . . . 1 Recycler 1 | 1 . . . Operator 1 | . 1 . . Swarmer 8 | . . 8 . Grunt 10 | . 4 6 . Brawler 1 | . . 1 . Sentry 3 | . . 2 1 Best Kill Streak 4 | 2 2 4 1 Combat Bots Only 4 | . 2 4 1 Max Kills in Single Turn 1 | 1 1 1 1 Gunslinging . | . . . . Exploded 1 | . . 1 . Melee 1 | . . 1 . Uniques/NPCs Destroyed . | . . . . Combat | -11 -10 -9 -9 -------- Run | Yrd Mat Mat Sto Hostile Shots Fired 241 | . 25 180 36 Missed 46 | . 4 35 7 Hits 195 | . 21 145 29 Melee 4 | . . 4 . Projectile 191 | . 21 141 29 Critical Strikes 3 | . 1 1 1 Damage Taken 2434 | . 357 1686 391 Core 490 | . 83 356 51 Absorbed by Shields . | . . . . Core Remaining (%) 83 | 100 66 . . Volleys Fired 123 | 10 22 63 28 Largest 2 | 2 2 2 1 Hottest 50 | 40 50 50 45 Shots Fired 172 | 20 44 79 29 Gun 141 | 20 41 51 29 Cannon 27 | . . 27 . Launcher 4 | . 3 1 . Special . | . . . . Kinetic 158 | 20 41 75 22 Thermal . | . . . . Explosive 4 | . 3 1 . Electromagnetic 10 | . . 3 7 Robot Hit Streak 23 | 6 7 11 23 Robot Miss Streak 4 | 4 2 3 2 Penetration Max . | . . . . Secondary Targets . | . . . . Shots Hit Robots 115 | 12 26 53 24 Core Hits 50 | 3 15 24 8 Critical Kills 2 | 1 . 1 . Critical Parts Destroyed 4 | . . 3 1 Critical Strikes 6 | 1 . 4 1 Destroy 2 | 1 . 1 . Smash 4 | . . 3 1 Melee Attacks 23 | . . 20 3 Impact 23 | . . 20 3 Slashing . | . . . . Piercing . | . . . . Sneak Attacks 3 | . . . 3 Combat Hostiles . | . . . . Follow-up Attacks 2 | . . 2 . Damage Inflicted 2206 | 100 378 1159 569 Guns 1132 | 100 232 482 318 Cannons 228 | . . 228 . Explosions 298 | . 146 152 . Melee 547 | . . 296 251 Ramming 1 | . . 1 . Kinetic 1225 | 100 232 660 233 Thermal 112 | . . 112 . Explosive 186 | . 146 40 . Electromagnetic 135 | . . 50 85 Impact 547 | . . 296 251 Slashing . | . . . . Piercing . | . . . . Highest Corruption 5 | . 1 4 5 Average Corruption 4 | . 1 4 4 Corruption Purged . | . . . . Corruption Blocked . | . . . . Effects 29 | . . 15 14 Message Errors 8 | . . 3 5 Matter Fused 3 | . . . 3 Heat Flow Errors 3 | . . 2 1 Energy Discharges 5 | . . 3 2 Parts Rejected 1 | . . 1 . Parts Fused 1 | . . . 1 Data Loss (minor) 3 | . . 3 . Data Loss (major) 3 | . . 2 1 Misfires 1 | . . . 1 Alerts 1 | . . 1 . Overload Shots . | . . . . Overflow Damage 367 | . 36 140 191 Projectiles . | . . . . Explosions 72 | . 36 36 . Melee 295 | . . 104 191 Knockbacks 12 | . . 11 1 Impact 1 | . . . 1 Kinetic 8 | . . 8 . Secondary 3 | . . 3 . Self-Inflicted Damage 179 | . 72 107 . Shots 5 | . 3 2 . Rammed 2 | . . 2 . Targets Rammed 2 | . . 2 . Kicked . | . . . . Crushed . | . . . . Highest Temperature 225 | . 34 194 225 Average Temperature 55 | . 15 97 106 Received Heat Transfer 672 | . 180 348 144 Siege Activations . | . . . . Martial Activations . | . . . . Shielding Activations . | . . . . Robots Disrupted . | . . . . Combat Hostiles . | . . . . Robots Corrupted 4 | . . 2 2 Combat Hostiles 2 | . . 2 . Parts Fried 6 | . . 2 4 Impact Corruptions 11 | . . 5 6 Robots Melted . | . . . . Combat Hostiles . | . . . . Parts Melted . | . . . . Heat Transferred 50 | . . 50 . Parts Sabotaged . | . . . . Parts Stolen . | . . . . Parts Stripped . | . . . . Power Chain Reactions . | . . . . Alert | -11 -10 -9 -9 ------- Run | Yrd Mat Mat Sto Maximum Alert Level 2 | . . . 2 Low Security (%) 76 | 100 100 100 25 Level 1 21 | . . . 66 Level 2 2 | . . . 8 Level 3 . | . . . . Level 4 . | . . . . Level 5 . | . . . . High Security . | . . . . Max Security . | . . . . Peak Influence 433 | 5 82 198 433 Initial 72 | . . 8 72 Average 133 | 1 34 112 252 Influence Increases 1597 | 10 210 565 812 Destroy 0b10 Robot/C 880 | . 80 340 460 Destroy 0b10 Robot/NC 65 | 10 5 5 45 Destroy Leader 184 | . 10 80 94 Allied During Kill 195 | . . . 195 Successful Hack 31 | . 13 1 17 Disable Machine 90 | . 30 60 . Destroy Structure 47 | . 12 34 1 Lose Combat Pursuer 105 | . 60 45 . Influence Decreases 1191 | 10 190 413 578 Entered New Map 112 | . . 12 100 Time Decay 769 | 10 170 311 278 Lost Part 120 | . 20 90 10 Lost Ally 190 | . . . 190 Squads Dispatched 5 | . . 2 3 Investigation 1 | . . 1 . Extermination . | . . . . Reinforcement 2 | . . 1 1 Assault 2 | . . . 2 Garrison . | . . . . Intercept . | . . . . Searches Triggered . | . . . . Construction Impeded 1 | . . . 1 Haulers Reinforced . | . . . . Active Scanning Responses . | . . . . Cargo Convoy Interrupts . | . . . . Stealth | -11 -10 -9 -9 --------- Run | Yrd Mat Mat Sto Distress Signals 8 | . 1 4 3 Communications Jammed . | . . . . Distress Signals . | . . . . Times Spotted 65 | . 12 25 28 Peak Tracking Total 7 | . 4 7 7 Tactical Retreats 4 | . 3 1 . Traps | -11 -10 -9 -9 ------- Run | Yrd Mat Mat Sto Traps Triggered 3 | . 1 1 1 Indirectly . | . . . . Trap Hack Attempts . | . . . . Triggered . | . . . . Disarmed . | . . . . Reprogrammed . | . . . . Reused . | . . . . Traps Extracted . | . . . . Installed . | . . . . Triggered . | . . . . Machines | -11 -10 -9 -9 ---------- Run | Yrd Mat Mat Sto Machines Disabled 6 | . 2 4 . Max in Single Turn 1 | . 1 1 . Machines Repaired . | . . . . Machines Dismantled . | . . . . Machines Sabotaged . | . . . . Overloaded Fab Kills . | . . . . Hacking | -11 -10 -9 -9 --------- Run | Yrd Mat Mat Sto Machines Accessed 8 | . 1 3 4 Terminals 7 | . 1 2 4 Fabricators . | . . . . Repair Stations . | . . . . Recycling Units . | . . . . Scanalyzers 1 | . . 1 . Garrison Access . | . . . . Total Hacks 22 | . 4 7 11 Successful 9 | . 2 4 3 Failed 13 | . 2 3 8 Catastrophic 6 | . . 1 5 Database Lockouts . | . . . . Manual 13 | . 3 3 7 Terminals 18 | . 4 3 11 Fabricators . | . . . . Repair Stations . | . . . . Recycling Units . | . . . . Scanalyzers 4 | . . 4 . Garrison Access . | . . . . Terminal Hacks 5 | . 2 . 3 Part Schematic 1 | . 1 . . Open Door 2 | . . . 2 Scanalyzer Index 1 | . . . 1 Zone Layout 1 | . 1 . . Fabricator Hacks . | . . . . Repair Station Hacks . | . . . . Recycling Unit Hacks . | . . . . Scanalyzer 4 | . . 4 . Insert Component 2 | . . 2 . Analyze 2 | . . 2 . Garrison Access Hacks . | . . . . Unauthorized Hacks . | . . . . Terminals . | . . . . Fabricators . | . . . . Repair Stations . | . . . . Recycling Units . | . . . . Scanalyzers . | . . . . Garrison Access . | . . . . Data Cores Recovered 1 | . . . 1 Used . | . . . . Hacking Detections 7 | . 1 2 4 Full Trace Events 5 | . 1 1 3 Feedback Events 1 | . . . 1 Corruption 1 | . . . 1 Feedback Blocked . | . . . . Robot Schematics Acquired . | . . . . Robots Built . | . . . . Authchips . | . . . . Time . | . . . . Total Robot Build Rating . | . . . . Part Schematics Acquired 3 | . 1 2 . Parts Built . | . . . . Authchips . | . . . . Time . | . . . . Total Part Build Rating . | . . . . Parts Repaired . | . . . . Time . | . . . . Parts Recycled . | . . . . Recycled Matter . | . . . . Retrieved Matter . | . . . . Retrieved Components . | . . . . Parts Scanalyzed 2 | . . 2 . Part Schematics Acquired 2 | . . 2 . Parts Damaged . | . . . . Bothacking | -11 -10 -9 -9 ------------ Run | Yrd Mat Mat Sto Used RIF Installer . | . . . . Robots Hacked . | . . . . Non-combat . | . . . . Combat . | . . . . Robot Hacks Applied . | . . . . Relay Couplers Released . | . . . . Fabnet Peak Effective % . | . . . . Robots Rewired . | . . . . Allies Hacked . | . . . . Hacks Repelled . | . . . . Allies | -11 -10 -9 -9 -------- Run | Yrd Mat Mat Sto Total Allies 12 | . . . 12 Largest Group 10 | . . . 10 Highest-Rated Group 102 | . . . 102 Highest-Rated Ally 31 | . . . 31 Total Orders . | . . . . Ally Attacks 133 | . . . 133 Total Damage 1375 | . . . 1375 Kills 29 | . . . 29 Allies Corrupted . | . . . . Allies Melted . | . . . . Intel | -11 -10 -9 -9 ------- Run | Yrd Mat Mat Sto Active Infowar (turns) 298 | 36 262 . . Terrain 298 | 36 262 . . Robot Analysis Total . | . . . . Derelict Logs Recovered . | . . . . Drone Launches 4 | . . . 4 Drone Recoveries 2 | . . . 2 Exploration | -11 -10 -9 -9 ------------- Run | Yrd Mat Mat Sto Turns Passed 1880 | 121 392 762 605 Spaces Moved 861 | 51 185 317 308 Core 5 | 4 . 1 . Treads 751 | 47 152 244 308 Legs 105 | . 33 72 . Wheels . | . . . . Hover . | . . . . Flight . | . . . . Fastest Speed 50 | 50 120 120 160 Average Speed 156 | 151 152 155 160 Slowest Speed 320 | 160 160 320 160 Overloaded Moves . | . . . . Propulsion Burnouts . | . . . . Robots Hopped . | . . . . Potential Cave-ins . | . . . . Cave-ins Triggered . | . . . . Exploration Rate (%) 28 | 5 40 28 40 Regions Visited 3 Branch Regions 1 Pre-discovered Areas . | . . . . Known Exits Taken . | . . . . Unknown Exits Taken 3 | 1 1 1 . Scrap Searched . | . . . . Spaces Dug 5 | . . 5 . Terrain Destroyed 50 | . 12 38 . Melee . | . . . . Projectile . | . . . . AOE 50 | . 12 38 . Terrain Rammed . | . . . . Walls Destroyed . | . . . . Machines Disabled . | . . . . Actions | -11 -10 -9 -9 --------- Run | Yrd Mat Mat Sto Total 1199 | 76 255 479 389 Wait 108 | 7 30 42 29 Move 858 | 50 184 316 308 Hop . | . . . . Pick Up 29 | 2 10 10 7 Fast Attach 14 | 6 . 4 4 Attach 13 | 1 1 9 2 Detach 1 | . . 1 . Swap 15 | . 5 9 1 Drop 16 | . 3 6 7 Fire 123 | 10 22 63 28 Melee 20 | . . 17 3 Ram . | . . . . Kick . | . . . . Crush 2 | . . 2 . Escape Stasis . | . . . . Rewire . | . . . . Trap . | . . . . Miscellaneous . | . . . . Route ------- -11/Scrapyard -10/Materials (discovered 3 exits: *Mat / [*Min] / [*Sub]) -9/Materials (discovered 2 exits: [*Mat] / *Sto) -9/Storage History --------- Turn | Location | Event 17 | -11/Scrapyard | Discovered new exit (range 15) 122 | -11/Scrapyard | Entered Materials 273 | -10/Materials | Discovered new exit (range 17) 293 | -10/Materials | Discovered new exit (range 12) 310 | -10/Materials | Build established: Mutant 485 | -10/Materials | Discovered new exit (range 15) 514 | -10/Materials | Entered another Materials area 514 | -9/Materials | Evolved 2 slots: Utility x2 706 | -9/Materials | Lost 4 parts (1n1u2w) 1097 | -9/Materials | Core integrity fell below 50% 1155 | -9/Materials | Lost 3 parts (1p1n1w) 1233 | -9/Materials | Discovered new exit (range 12) 1243 | -9/Materials | Discovered new exit (range 14) 1248 | -9/Materials | Core integrity fell below 20% 1276 | -9/Materials | Entered Storage 1285 | -9/Storage | Assisted by bots powering up and referring to "LRC-V3" 1553 | -9/Storage | Lost 3 allies 1582 | -9/Storage | Build established: Commander-Mutant 1619 | -9/Storage | Met a pair of Derelict thieves 1827 | -9/Storage | Lost 6 allies 1881 | -9/Storage | Destroyed by Y-45 Defender with Heavy Assault Rifle Last Messages --------------- Destroyed Transport Network Coupler. A-02 Transporter system corrupted by crushing effect. A-02 Transporter system terminally corrupted. Ion Engine fried. Lgt. Treads fried. K-01 Serf collects debris. Drone retrieved by Drone Bay (repair cost: 2). K-01 Serf collects debris. Drone retrieved by Drone Bay (no repairs). K-01 Serf collects debris. G-34 Mercenary destroyed. R-06 Scavenger collects Prototype Energy Gun. G-34 Mercenary destroyed. K-01 Serf collects debris. 1M-WZT(g) destroyed. R-06 Scavenger collects Prototype Energy Gun. K-01 Serf collects debris. R-06 Scavenger collects Prototype Energy Gun. K-01 Serf collects debris. Map ----- +----------------------------------------------------+ | ?????????????????????????????????????????????????? | | ?????????????????????????????????????????????????? | | ?????????????????????????????????????????????????? | | ?????????????????????????????????????????????????? | | ?????????????????????????????????????????????????? | | ?????????????????????????????????????????????????? | | ?????????????????????????????????????????????????? | | ?????????????????????????????????????????????????? | | ???????????????????????????? ??????????#######?? | | ???????????????????????????? ??????????# #?? | | ???????????????????????????# #?????????# /! #?? | | ???????????????????????????# #?????????# [%! +?? | | ???????????????????????????# ########### #?? | | ???????????????????????????# ## ## == #?? | | ???????????????????????????# ## ###*[/#### | | ???????????????????????????+ + #?#%**[= | | ???????????????????????????#Y ## ###[%/== | | ???????????????????????????# ## == ?#*=%#### | | ???????????????????????????# ## == #?#%=%#??? | | ?????????????????########### ## = #?#=*%#??? | | ?????????????????# """ ## ## #?#=[=#??? | | ?????????????????# "Y" ## ## ! #?#!%[#??? | | ?????????????????# " " ## ## #?#%!%#### | | ?????????????????# ## ##? ??## [## | | ?????????????????# # ####+##### [ # | | ?????????????????#^ [[| @#= n r =%!# | | ?????????????????# [[!!=+%[= % % % + | | ????????????????# [[Y u#r=k[u[[%[! %k %##T | | ????????????????## # [ ########## ### | | ?????????????????######;#########???????### ##?? | | ????????????????????? ???????????######T# #### | | ???????????????????? ???????????# !!# # # | | ??????????????????? ????????????# # %# | | ??????????????????#####????????????# ! # + =%+% % | | ???????????????????????????????????######## %#! | | ????????????????????????????######????????# # % | | ????????????????????????????# #????????# #### | | ????????????????????????????# #????????# #??? | | ????????????????????????????# #?###????# #### | | ????????????????????????????# ########## % ! | | ????????????????????????????# ^ % %* | | ????????????????????????????# !=##### | | ????????????????????????????# # %*=#???###+#### | | ????????????????????????????# =!!=#????#T #??? | | ????????????????????????????# #%#????##=#??? | | ????????????????????????????#########!#?????#]#??? | | ????????????????????????????????????#[#?????###??? | | ????????????????????????????????????# #??????????? | | ????????????????????????????????????# #??????????? | | ????????????????????????????????????# #??????????? | +----------------------------------------------------+ Best States ------------- Heat Dissipation 42 Energy Generation 12 Energy Capacity 265 Matter Stores 300 Matter Capacity 300 Sight Range 16 Terrain Scan Range 16 Terrain Scan Density 85 Evasion (%) 55 Recoil Reduction 2 Offensive Hacking 10 Item Schematics ----------------- Lgt. Treads | -10/Materials | Hacked Hacking Suite | -9/Materials | Scanalyzed Grenade Launcher | -9/Materials | Scanalyzed Robot Schematics ------------------ None Fabricated ------------ Nothing Repaired ---------- Nothing Alien Tech Used ----------------- None Achievements -------------- None Challenges ------------ None Game ------ Seed MultireflexRocketMatterbank Manual? 0 Play Time 00:26:05 Cumulative 21.0 hours Start 2025.05.06 @ 12:27:03 End 2025.05.10 @ 12:56:04 Sessions 2 Manual Loads 0 Difficulty Rogue Special Mode None Game No. 30 Rogue 19 Adventurer 11 Explorer 0 Win Type - Total 0 Types 0/0/0/0/0/0/0/0/0/0 Lore% 4 Gallery% 14 Achievement% 15 Wizard Run 0 Options --------- Layout 1 ASCII 0 Keyboard 1 Movement Vi Keybinds 0 Fullscreen 2 Font 24/Smallcaps Map View 50x35 Zoom Use 0% Tactical HUD 0 Map Filters NONE Filters NONE Steam 1 RUN: 19af2749-79f2-4996-b7c2-2348d830cae6